bitfinex/quotes_SOLUSD_20240925
["timestamp","ask_amount","ask_price","bid_price","bid_amount"]
[1727284521443,1.65428807,151.15,151.07,12.12716017]
[1727284521919,8.27038807,151.15,151.07,12.12716017]
[1727284522117,6.6164,151.14,151.07,12.12716017]
[1727284522320,16.489,151.12,151.07,12.12716017]
[1727284526147,1.65445298,151.11,151.05,12.12716017]
[1727284528240,16.489,151.12,151.05,12.12716017]
[1727284528843,16.489,151.12,151.07,12.12716017]
[1727284530042,16.489,151.12,151.08,23.776884]
[1727284530936,18.14330146,151.12,151.04,0.2453883]
[1727284531140,18.14330146,151.12,151.05,12.12716017]
[1727284534441,16.489,151.12,151.05,12.12716017]
[1727284536234,18.14351552,151.12,151.05,12.12716017]
[1727284536948,16.489,151.12,151.05,12.12716017]
[1727284538047,1.65451742,151.11,151.06,12.12716017]
[1727284538347,8.27241742,151.11,151.04,0.2453883]
[1727284538548,6.6182,151.1,151.04,0.2453883]
[1727284538728,1.65487918,151.09,151.04,0.2453883]
[1727284539520,8.27347918,151.09,151.04,0.2453883]
[1727284539849,8.27410417,151.08,151.04,0.2453883]
[1727284540051,21.9032,151.07,151.04,0.2453883]
[1727284541043,22.0532,151.11,151.06,12.12716017]
[1727284541230,22.0532,151.11,151.07,12.12716017]
[1727284541439,22.0532,151.11,151.08,12.12716017]
[1727284542135,6.92070891,151.17,151.09,12.12716017]
[1727284542136,6.6165,151.14,151.09,12.12716017]
[1727284542543,15.1485,151.15,151.09,12.12716017]
[1727284542724,21.7644,151.15,151.09,12.12716017]
[1727284543451,6.6163,151.14,151.09,12.12716017]
[1727284546249,15.1485,151.15,151.09,12.12716017]
[1727284546555,21.7644,151.15,151.09,12.12716017]
[1727284546848,15.1485,151.15,151.1,12.12716017]
[1727284547063,6.92070891,151.17,151.12,12.12716017]
[1727284547229,21.6939,151.19,151.13,12.12716017]
[1727284548245,6.6146,151.18,151.13,12.12716017]
[1727284548455,21.694,151.19,151.13,12.12716017]
[1727284548828,15.0796,151.19,151.14,12.12716017]
[1727284549829,15.0796,151.19,151.15,12.12716017]
[1727284550154,0.2453883,151.2,151.15,12.12716017]
[1727284550343,0.2453883,151.2,151.14,18.93873425]
[1727284551549,1.89905523,151.2,151.14,18.93873425]
[1727284553061,1.89905523,151.2,151.13,23.776884]
[1727284553435,0.2453883,151.2,151.13,23.776884]
[1727284556335,0.2453883,151.2,151.14,18.93873425]
[1727284557358,0.2453883,151.2,151.16,18.93873425]
[1727284557673,0.2453883,151.2,151.19,23.776884]
[1727284558934,0.2453883,151.2,151.18,18.93873425]
[1727284560459,0.2453883,151.2,151.15,62.71561825]
[1727284560641,0.2453883,151.2,151.15,38.93873425]
[1727284560844,0.2453883,151.2,151.14,6.3001]
[1727284561045,0.2453883,151.2,151.14,20.0]
[1727284562137,0.2453883,151.2,151.1,6.2126]
[1727284562371,0.2453883,151.2,151.1,25.15133425]
[1727284562540,6.8591883,151.2,151.1,25.15133425]
[1727284562856,0.2453883,151.2,151.12,18.93873425]
[1727284563073,0.2453883,151.2,151.14,18.93873425]
[1727284563636,0.2453883,151.2,151.15,23.776884]
[1727284563838,1.89891254,151.2,151.14,18.93873425]
[1727284564042,6.6147,151.18,151.1,25.15133425]
[1727284564252,1.6539748,151.17,151.1,18.93873425]
[1727284565468,1.6539748,151.17,151.08,34.94373425]
[1727284565671,6.6158,151.16,151.08,34.94373425]
[1727284565967,6.6152,151.17,151.08,34.94373425]
[1727284566366,8.26986376,151.16,151.08,18.93873425]
[1727284566667,6.6173,151.12,151.04,34.51552255]
[1727284566875,21.8908,151.15,151.04,19.18412255]
[1727284567367,21.8908,151.15,151.06,18.93873425]
[1727284567694,15.6359,151.15,151.08,18.93873425]
[1727284567962,1.65422402,151.14,151.08,18.93873425]
[1727284568168,1.65436829,151.13,151.04,19.18412255]
[1727284568350,6.6172,151.12,151.04,19.18412255]
[1727284568675,12.6285,151.12,151.04,0.2453883]
[1727284568870,6.0112,151.12,151.04,19.18412255]
[1727284569279,6.0112,151.12,151.06,18.93873425]
[1727284569449,22.2519,151.15,151.06,18.93873425]
[1727284570351,15.6359,151.15,151.08,18.93873425]
[1727284571356,15.6359,151.15,151.09,23.776884]
[1727284571768,22.8716,151.19,151.1,18.93873425]
[1727284571954,6.6146,151.18,151.1,18.93873425]
[1727284572147,8.26906832,151.17,151.1,18.93873425]
[1727284572553,6.615,151.17,151.1,18.93873425]
[1727284573051,1.65406934,151.16,151.1,18.93873425]
[1727284573566,1.65406934,151.16,151.08,42.71561825]
[1727284575082,1.65407539,151.15,151.08,42.71561825]
[1727284575875,6.6164,151.14,151.07,20.0]
[1727284576060,1.65443473,151.13,151.06,18.93873425]
[1727284576262,6.6169,151.13,151.05,20.0]
[1727284577167,6.5292,151.17,151.06,18.93873425]
[1727284577556,6.616,151.15,151.06,18.93873425]
[1727284578381,13.1443,151.17,151.08,18.93873425]
[1727284578872,6.5292,151.17,151.1,18.93873425]
[1727284580080,16.257,151.19,151.12,18.93873425]
[1727284580259,16.257,151.19,151.14,18.93873425]
[1727284580653,0.2453883,151.2,151.16,18.93873425]
[1727284584879,1.89898346,151.2,151.14,18.93873425]
[1727284585061,1.89898346,151.2,151.13,23.776884]
[1727284586459,6.8591883,151.2,151.13,23.776884]
[1727284586659,0.2453883,151.2,151.13,23.776884]
[1727284587575,1.89911572,151.2,151.12,18.93873425]
[1727284589377,6.6142,151.19,151.12,18.93873425]
[1727284589575,1.65384695,151.18,151.12,18.93873425]
[1727284590579,1.65385106,151.19,151.12,18.93873425]
[1727284591583,6.8594883,151.2,151.12,18.93873425]
[1727284591774,1.65379445,151.19,151.12,18.93873425]
[1727284592158,6.8594883,151.2,151.12,18.93873425]
[1727284592365,1.65378082,151.19,151.12,18.93873425]
[1727284594182,0.2453883,151.2,151.12,18.93873425]
[1727284594478,6.6142,151.19,151.12,18.93873425]
[1727284595177,1.65380043,151.18,151.12,18.93873425]
[1727284595480,16.5461,151.17,151.11,20.0]
[1727284596068,16.5461,151.17,151.12,18.93873425]
[1727284602185,18.20006105,151.17,151.12,18.93873425]
[1727284602376,18.20006105,151.17,151.1,18.93873425]
[1727284602695,16.5461,151.17,151.1,18.93873425]
[1727284602894,18.20013951,151.17,151.1,18.93873425]
[1727284603572,23.1612,151.17,151.1,18.93873425]
[1727284606695,16.5461,151.17,151.1,18.93873425]
[1727284606869,16.5461,151.17,151.12,18.93873425]
[1727284608494,16.5461,151.17,151.14,12.12443577]
[1727284611285,0.2453883,151.2,151.16,12.12443577]
[1727284613176,0.2453883,151.2,151.19,12.12443577]
[1727284614400,0.2453883,151.2,151.17,18.93058425]
[1727284615396,0.2453883,151.2,151.18,23.776884]
[1727284616496,0.2453883,151.2,151.19,18.93058425]
[1727284616791,0.2453883,151.2,151.19,42.70746825]
[1727284616979,0.2453883,151.2,151.17,18.93058425]
[1727284617183,0.2453883,151.2,151.18,23.776884]
[1727284617792,0.2453883,151.2,151.19,42.70746825]
[1727284618380,0.2453883,151.2,151.17,18.93058425]
[1727284618592,0.2453883,151.2,151.18,23.776884]
[1727284620800,0.2453883,151.2,151.15,18.93058425]
[1727284622083,0.2453883,151.2,151.13,18.93058425]
[1727284622390,0.2453883,151.2,151.14,23.776884]
[1727284623417,15.5683,151.19,151.08,21.9286]
[1727284623717,6.6165,151.14,151.06,25.83970051]
[1727284624006,8.30382444,151.18,151.04,19.17597255]
[1727284624007,15.5683,151.12,151.04,19.17597255]
[1727284625209,17.22283971,151.12,151.04,19.17597255]
[1727284625781,6.6181,151.1,151.04,0.2453883]
[1727284625983,8.27346921,151.09,151.04,0.2453883]
[1727284626673,6.6191,151.08,151.04,0.2453883]
[1727284626898,6.0762,151.11,151.04,0.2453883]
[1727284628076,12.6943,151.11,151.04,0.2453883]
[1727284629477,8.2730464,151.1,151.04,0.2453883]
[1727284629873,1.6549464,151.1,151.04,0.2453883]
[1727284630206,6.0762,151.11,151.04,0.2453883]
[1727284630396,6.6181,151.1,151.04,0.2453883]
[1727284630593,1.65509157,151.09,151.04,0.2453883]
[1727284631806,8.27389157,151.09,151.04,0.2453883]
[1727284632501,6.6188,151.09,151.04,0.2453883]
[1727284633898,6.0762,151.11,151.04,0.2453883]
[1727284634101,1.65488284,151.1,151.04,0.2453883]
[1727284634603,1.65505096,151.09,151.04,0.2453883]
[1727284635004,6.0762,151.11,151.04,0.2453883]
[1727284635194,12.6939,151.11,151.04,0.2453883]
[1727284635703,6.6203,151.05,151.04,0.2453883]
[1727284635910,22.9783,151.05,151.04,0.2453883]
[1727284636394,6.622,151.02,151.0,0.2453883]
[1727284636593,8.27785793,151.01,151.0,0.2453883]
[1727284636797,6.622,151.01,151.0,0.2453883]
[1727284636987,22.7056,151.05,151.0,0.2453883]
[1727284637183,6.6212,151.03,151.0,0.2453883]
[1727284637382,1.65577701,151.02,151.0,0.2453883]
[1727284638587,6.6208,151.04,151.0,0.2453883]
[1727284638811,1.65572897,151.03,151.0,0.2453883]
[1727284639201,8.27692897,151.03,151.0,0.2453883]
[1727284640419,6.6212,151.03,151.0,0.2453883]
[1727284640719,1.65576492,151.02,151.0,0.2453883]
[1727284642509,1.65565876,151.03,151.0,0.2453883]
[1727284643227,6.622,151.01,150.94,0.4250488]
[1727284643538,22.7245,150.97,150.94,0.4250488]
[1727284643693,8.28072479,150.96,150.94,0.4250488]
[1727284643929,8.28072479,150.96,150.85,0.4250488]
[1727284643930,6.6261,150.92,150.85,0.4250488]
[1727284644096,8.28298363,150.92,150.85,0.4250488]
[1727284644315,9.66560881,150.92,150.85,0.4250488]
[1727284644519,6.90448443,150.91,150.85,0.4250488]
[1727284644901,12.4301,150.95,150.85,0.4250488]
[1727284645102,12.4301,150.95,150.86,18.93058425]
[1727284645322,12.4301,150.95,150.87,18.93058425]
[1727284645323,5.8053,150.95,150.87,18.93058425]
[1727284645522,5.8053,150.95,150.85,0.4250488]
[1727284645728,5.8053,150.95,150.86,18.93058425]
[1727284646020,6.482,150.97,150.9,19.17597255]
[1727284646218,6.482,150.97,150.9,0.2453883]
[1727284646396,1.65651901,150.96,150.9,19.17597255]
[1727284646595,1.65651901,150.96,150.9,0.2453883]
[1727284647217,6.482,150.97,150.9,0.2453883]
[1727284647697,1.65651911,150.96,150.9,0.2453883]
[1727284648434,6.91268973,150.99,150.9,0.2453883]
[1727284648595,16.1751,151.0,150.91,18.93058425]
[1727284648998,16.1751,151.0,150.93,18.93058425]
[1727284649215,13.25498683,151.01,150.93,18.93058425]
[1727284649528,14.62009677,151.01,150.93,18.93058425]
[1727284649820,6.3417,151.01,150.93,18.93058425]
[1727284650704,1.65607684,151.0,150.93,18.93058425]
[1727284651120,6.6234,150.98,150.9,0.2453883]
[1727284651306,6.3417,151.01,150.9,0.2453883]
[1727284651307,1.65632764,151.0,150.9,0.2453883]
[1727284651626,6.3417,151.01,150.9,19.17597255]
[1727284651805,12.9641,151.01,150.9,19.17597255]
[1727284652004,12.9641,151.01,150.92,18.93058425]
[1727284652328,1.6561783,151.0,150.9,0.2453883]
[1727284652619,12.9641,151.01,150.91,23.776884]
[1727284652827,6.3417,151.01,150.92,18.93058425]
[1727284653009,6.6216,151.02,150.92,18.93058425]
[1727284653323,22.80365946,151.04,150.94,18.93058425]
[1727284653504,6.5153,151.05,150.96,18.93058425]
[1727284653910,8.17112187,151.05,150.95,23.776884]
[1727284654100,6.6216,151.02,150.95,23.776884]
[1727284654300,1.65588119,151.01,150.95,23.776884]
[1727284654724,1.65588119,151.01,150.94,43.776884]
[1727284657769,6.5153,151.05,150.96,42.70746825]
[1727284657914,13.77819139,151.06,150.96,42.70746825]
[1727284658235,7.15799139,151.06,150.99,23.776884]
[1727284658404,1.65535393,151.05,150.99,23.776884]
[1727284658596,1.65535393,151.05,150.98,18.93058425]
[1727284659029,8.27565393,151.05,150.96,62.70746825]
[1727284659230,1.65535393,151.05,150.96,62.70746825]
[1727284660303,0.2453883,151.06,150.96,62.70746825]
[1727284660525,1.65553541,151.05,150.96,62.70746825]
[1727284663225,6.6209,151.04,150.96,62.70746825]
[1727284663424,0.2453883,151.06,150.96,62.70746825]
[1727284663743,6.8656883,151.06,150.96,62.70746825]
[1727284664630,1.65550162,151.05,150.96,62.70746825]
[1727284665344,1.65550162,151.05,150.98,18.93058425]
[1727284665530,1.65550162,151.05,150.99,23.776884]
[1727284665844,1.90073913,151.06,150.99,23.776884]
[1727284666428,1.9007381,151.06,150.99,23.776884]
[1727284666838,0.2453883,151.06,150.97,23.776884]
[1727284667232,0.2453883,151.06,150.98,20.0]
[1727284667430,0.2453883,151.06,150.98,38.93058425]
[1727284669143,0.2453883,151.06,151.0,18.93058425]
[1727284669821,0.2453883,151.06,151.03,23.776884]
[1727284670263,0.2453883,151.06,150.98,18.93058425]
[1727284670548,0.2453883,151.06,151.0,20.0]
[1727284670745,8.52060275,151.06,150.98,18.93058425]
[1727284670942,1.90070275,151.06,150.99,20.0]
[1727284671132,0.2453883,151.06,150.99,20.0]
[1727284671657,1.90067333,151.06,150.99,20.0]
[1727284672128,8.52057333,151.06,150.99,20.0]
[1727284672525,0.2453883,151.06,150.99,20.0]
[1727284673131,8.5209809,151.06,150.99,20.0]
[1727284673333,8.1061809,151.06,150.97,20.0]
[1727284673541,6.6205,151.05,150.98,23.776884]
[1727284673739,6.6205,151.05,150.96,35.48818425]
[1727284673740,8.27636362,151.04,150.96,35.48818425]
[1727284673925,1.65546362,151.04,150.95,23.776884]
[1727284674126,1.65546362,151.04,150.94,18.93058425]
[1727284674321,6.622,151.02,150.92,35.00318425]
[1727284675125,6.6211,151.04,150.94,18.93058425]
[1727284675629,6.6211,151.04,150.95,23.776884]
[1727284675951,1.65570777,151.04,150.92,16.0726]
[1727284676134,1.65570777,151.04,150.9,25.34607255]
[1727284676135,16.5553,151.01,150.9,25.34607255]
[1727284676457,8.27912019,151.0,150.92,18.93058425]
[1727284676861,1.65622019,151.0,150.92,18.93058425]
[1727284677542,6.6225,151.0,150.92,18.93058425]
[1727284678052,1.65608624,150.99,150.92,18.93058425]
[1727284679055,6.6225,151.0,150.92,18.93058425]
[1727284679234,1.65608507,150.99,150.92,18.93058425]
[1727284679434,6.6225,151.0,150.92,18.93058425]
[1727284679635,1.65608895,150.99,150.92,18.93058425]
[1727284679861,1.65608895,150.99,150.91,43.776884]
[1727284680049,6.6229,150.99,150.91,43.776884]
[1727284680456,23.87494956,150.98,150.91,43.776884]
[1727284680657,17.25144956,150.98,150.9,19.17597255]
[1727284680847,22.219,150.98,150.9,0.2453883]
[1727284681544,15.5952,150.98,150.91,23.776884]
[1727284681848,1.65624086,150.97,150.91,23.776884]
[1727284682666,15.5952,150.98,150.9,20.2453883]
[1727284682839,22.2189,150.98,150.9,20.2453883]
[1727284684037,1.65630542,150.97,150.9,20.2453883]
[1727284684248,6.6242,150.96,150.9,0.2453883]
[1727284684440,1.65640587,150.95,150.9,0.2453883]
[1727284684656,15.5952,150.98,150.9,0.2453883]
[1727284684835,6.6251,150.94,150.9,0.2453883]
[1727284685339,6.6261,150.92,150.9,0.2453883]
[1727284685663,6.626,150.92,150.9,0.2453883]
[1727284687260,6.0636,150.93,150.9,0.2453883]
[1727284687836,1.65671567,150.92,150.9,0.2453883]
[1727284688270,23.1746,150.91,150.9,0.2453883]
[1727284688567,16.5482,150.91,150.9,0.2453883]
[1727284689237,23.1746,150.91,150.9,0.2453883]
[1727284690857,24.83177155,150.91,150.9,0.2453883]
[1727284691058,23.1746,150.91,150.9,0.2453883]
[1727284692054,24.83173221,150.91,150.9,0.2453883]
[1727284695869,19.60368586,150.93,150.9,0.2453883]
[1727284696074,6.6252,150.94,150.9,0.2453883]
[1727284696362,16.3445,150.95,150.9,0.2453883]
[1727284696541,32.9063,150.95,150.9,0.2453883]
[1727284696740,6.6256,150.93,150.9,0.2453883]
[1727284696956,6.6257,150.93,150.9,0.2453883]
[1727284697140,22.9695,150.95,150.9,0.2453883]
[1727284697341,6.6251,150.94,150.9,0.2453883]
[1727284697562,16.3445,150.95,150.9,0.2453883]
[1727284697765,6.6264,150.91,150.9,0.2453883]
[1727284697970,6.6263,150.92,150.9,0.2453883]
[1727284698760,6.6255,150.94,150.9,0.2453883]
[1727284698961,6.6257,150.93,150.9,0.2453883]
[1727284701474,6.6252,150.94,150.9,0.2453883]
[1727284701676,22.9693,150.95,150.9,0.2453883]
[1727284702375,1.65660802,150.94,150.9,0.2453883]
[1727284702582,6.6256,150.93,150.9,0.2453883]
[1727284703761,6.6263,150.92,150.9,0.2453883]
[1727284704982,6.6264,150.91,150.9,0.2453883]
[1727284708657,6.90447196,150.94,150.9,0.2453883]
[1727284708863,6.6256,150.93,150.9,0.2453883]
[1727284709059,6.6252,150.94,150.9,0.2453883]
[1727284709272,16.3445,150.95,150.9,0.2453883]
[1727284709273,18.00123022,150.95,150.9,0.2453883]
[1727284709464,6.6264,150.91,150.9,0.2453883]
[1727284709953,6.626,150.92,150.9,0.2453883]
[1727284710155,6.6256,150.93,150.9,0.2453883]
[1727284710381,1.65670462,150.92,150.9,0.2453883]
[1727284710987,6.6252,150.94,150.9,0.2453883]
[1727284711280,8.28225842,150.93,150.9,0.2453883]
[1727284711660,6.6262,150.92,150.9,0.2453883]
[1727284712063,6.6256,150.93,150.9,0.2453883]
[1727284712568,6.6252,150.94,150.9,0.2453883]
[1727284712770,6.6248,150.95,150.9,0.2453883]
[1727284713084,1.65655933,150.94,150.9,0.2453883]
[1727284713388,6.6255,150.94,150.9,0.2453883]
[1727284713563,1.65666221,150.93,150.9,0.2453883]
[1727284714075,1.65666359,150.96,150.9,0.2453883]
[1727284714277,6.6256,150.93,150.9,0.2453883]
[1727284714477,1.65673942,150.92,150.9,0.2453883]
[1727284715062,16.5604,150.97,150.9,0.2453883]
[1727284715260,6.6253,150.94,150.9,0.2453883]
[1727284715467,16.5604,150.97,150.9,0.2453883]
[1727284715793,6.6243,150.96,150.9,0.2453883]
[1727284715960,6.6248,150.95,150.9,0.2453883]
[1727284716266,1.6565491,150.94,150.9,0.2453883]
[1727284716469,6.6256,150.93,150.9,0.2453883]
[1727284716787,1.6567657,150.92,150.9,0.2453883]
[1727284716972,8.2827657,150.92,150.9,0.2453883]
[1727284717292,1.65682897,150.91,150.9,0.2453883]
[1727284717466,16.561,150.96,150.9,0.2453883]
[1727284717808,6.6264,150.91,150.9,0.2453883]
[1727284719764,30.403284,150.91,150.9,0.2453883]
[1727284720592,6.6264,150.91,150.9,0.2453883]
[1727284721788,8.28371718,150.91,150.9,0.2453883]
[1727284722661,30.403284,150.91,150.9,0.2453883]
[1727284723567,30.403284,150.91,150.85,0.4250488]
[1727284723568,6.6286,150.86,150.85,0.4250488]
[1727284724985,8.286089,150.86,150.85,0.4250488]
[1727284725983,6.6286,150.86,150.85,0.4250488]
[1727284726190,8.28617659,150.86,150.85,0.4250488]
[1727284727089,6.6286,150.86,150.85,0.4250488]
[1727284727296,8.28617481,150.86,150.85,0.4250488]
[1727284728291,6.6286,150.86,150.85,0.4250488]
[1727284728492,8.28617573,150.86,150.85,0.4250488]
[1727284728796,6.6286,150.86,150.85,0.4250488]
[1727284731388,8.28562625,150.88,150.85,0.4250488]
[1727284731595,6.6286,150.86,150.85,0.4250488]
[1727284732778,1.65741322,150.9,150.85,0.4250488]
[1727284733102,6.6286,150.86,150.85,0.4250488]
[1727284733694,30.405484,150.86,150.85,0.4250488]
[1727284733879,6.6286,150.86,150.85,0.4250488]
[1727284734894,8.2864043,150.86,150.85,0.4250488]
[1727284736501,6.6286,150.86,150.85,0.4250488]
[1727284740604,6.6286,150.86,150.81,0.2453883]
[1727284740605,6.6304,150.82,150.81,0.2453883]
[1727284743876,16.5738,150.85,150.81,0.2453883]
[1727284744079,6.6304,150.82,150.81,0.2453883]
[1727284753202,6.89736009,150.86,150.81,0.2453883]
[1727284753413,6.63,150.83,150.81,0.2453883]
[1727284753612,6.6304,150.82,150.81,0.2453883]
[1727284756533,1.65826214,150.85,150.81,0.2453883]
[1727284756717,6.63,150.83,150.81,0.2453883]
[1727284756913,6.89736009,150.86,150.81,0.2453883]
[1727284757118,6.6304,150.82,150.81,0.2453883]
[1727284757324,6.6304,150.82,150.79,22.7102]
[1727284758432,6.6312,150.8,150.79,16.2922]
[1727284758728,6.632,150.79,150.75,21.3127]
[1727284758928,1.6582688,150.78,150.75,21.3127]
[1727284759313,6.6325,150.78,150.75,21.3127]
[1727284759629,1.65826863,150.77,150.75,21.3127]
[1727284759821,6.6325,150.78,150.75,21.3127]
[1727284760141,1.65831261,150.77,150.75,15.1762]
[1727284760301,6.6327,150.77,150.75,15.1762]
[1727284760830,1.65838926,150.76,150.71,22.6452]
[1727284761019,6.6327,150.77,150.71,22.6452]
[1727284761212,6.6322,150.78,150.71,22.6452]
[1727284762131,6.6322,150.78,150.72,23.776884]
[1727284762723,16.5753,150.83,150.72,23.776884]
[1727284762915,6.6317,150.79,150.72,23.776884]
[1727284763728,8.29076525,150.78,150.71,22.6452]
[1727284763933,8.29115546,150.77,150.71,22.6452]
[1727284764110,6.6322,150.78,150.71,22.6452]
[1727284764715,6.6322,150.78,150.72,23.776884]
[1727284765115,1.65829973,150.77,150.71,41.57578425]
[1727284765912,6.6322,150.78,150.71,41.57578425]
[1727284766436,8.29111956,150.77,150.71,22.6452]
[1727284766606,6.6327,150.77,150.72,18.93058425]
[1727284766811,6.6327,150.77,150.71,22.6452]
[1727284769931,1.65843782,150.76,150.71,22.6452]
[1727284772037,6.6327,150.77,150.71,22.6452]
[1727284772538,6.6332,150.76,150.71,22.6452]
[1727284776352,6.6332,150.76,150.7,18.93058425]
[1727284776353,1.65856232,150.75,150.66,15.0335]
[1727284776516,16.5856,150.74,150.66,15.0335]
[1727284776847,1.65922716,150.73,150.66,15.0335]
[1727284777216,6.6348,150.72,150.66,15.0335]
[1727284777522,1.65916536,150.71,150.66,15.0335]
[1727284777917,6.6354,150.71,150.66,15.0335]
[1727284778227,1.65916661,150.7,150.66,15.0335]
[1727284778428,6.6356,150.71,150.66,15.0335]
[1727284778631,1.65924219,150.7,150.66,15.0335]
[1727284778933,1.65924219,150.7,150.63,6.1194]
[1727284779129,1.65924219,150.7,150.64,12.20358521]
[1727284779337,8.29534219,150.7,150.63,18.32298521]
[1727284779541,1.65937449,150.69,150.63,18.32298521]
[1727284780047,6.6361,150.7,150.64,12.20358521]
[1727284780234,6.6361,150.7,150.65,12.20358521]
[1727284780438,6.6361,150.7,150.63,25.18623133]
[1727284780631,1.65923975,150.69,150.64,23.776884]
[1727284780832,6.6352,150.71,150.64,23.776884]
[1727284781031,32.1201,150.77,150.64,23.776884]
[1727284781238,6.6345,150.73,150.66,23.776884]
[1727284781425,6.6343,150.73,150.65,19.06683133]
[1727284781727,6.6331,150.76,150.68,39.608884]
[1727284782550,15.5385,150.77,150.68,39.608884]
[1727284782864,6.6335,150.75,150.68,39.608884]
[1727284783048,1.65878915,150.74,150.68,39.608884]
[1727284783247,8.29268915,150.74,150.68,39.608884]
[1727284783428,1.65878915,150.74,150.68,15.832]
[1727284783636,6.6344,150.73,150.68,15.832]
[1727284784425,1.65897631,150.72,150.68,15.832]
[1727284784844,15.5385,150.77,150.68,15.832]
[1727284784845,6.634,150.74,150.68,15.832]
[1727284785751,1.65879849,150.73,150.68,15.832]
[1727284785952,15.5385,150.77,150.68,15.832]
[1727284786739,6.6335,150.75,150.68,15.832]
[1727284787250,6.6339,150.74,150.68,15.832]
[1727284787443,1.65878249,150.76,150.68,15.832]
[1727284787626,6.6345,150.73,150.68,15.832]
[1727284788121,16.5831,150.76,150.68,15.832]
[1727284788324,6.6347,150.73,150.68,15.832]
[1727284788726,1.65896674,150.72,150.68,15.832]
[1727284788947,16.5853,150.74,150.68,15.832]
[1727284789158,6.6353,150.71,150.64,19.06683133]
[1727284789336,1.65914801,150.7,150.64,34.97733133]
[1727284789533,1.65914801,150.7,150.65,23.776884]
[1727284791450,1.65914801,150.7,150.64,15.9105]
[1727284791451,6.6361,150.69,150.64,15.9105]
[1727284791636,6.6356,150.71,150.64,15.9105]
[1727284791960,23.776884,150.76,150.64,34.97733133]
[1727284792645,6.6344,150.73,150.65,23.776884]
[1727284792832,15.5385,150.77,150.65,23.776884]
[1727284793043,16.583,150.76,150.65,23.776884]
[1727284793235,17.19745178,150.77,150.66,19.06683133]
[1727284793539,1.65886803,150.76,150.67,23.776884]
[1727284793763,6.6338,150.75,150.67,23.776884]
[1727284793946,8.29269858,150.74,150.67,23.776884]
[1727284794260,6.634,150.74,150.67,23.776884]
[1727284795374,23.48033691,150.79,150.69,23.776884]
[1727284795856,25.13897925,150.79,150.69,23.776884]
[1727284796250,6.6337,150.75,150.69,23.776884]
[1727284796451,1.65864497,150.74,150.69,23.776884]
[1727284796659,6.634,150.74,150.69,23.776884]
[1727284797745,23.48033691,150.79,150.69,23.776884]
[1727284797945,6.6336,150.75,150.69,23.776884]
[1727284798247,1.65866367,150.74,150.69,23.776884]
[1727284798751,6.6336,150.75,150.69,23.776884]
[1727284798962,1.65866069,150.78,150.7,16.2786]
[1727284799146,23.48033691,150.79,150.7,35.34543133]
[1727284799346,16.5799,150.79,150.7,35.34543133]
[1727284799761,1.65850629,150.78,150.7,35.34543133]
[1727284799968,6.6329,150.77,150.7,35.34543133]
[1727284800162,1.65850604,150.76,150.7,35.34543133]
[1727284800554,8.29160604,150.76,150.7,35.34543133]
[1727284800876,6.6327,150.77,150.71,23.776884]
[1727284801651,8.29152034,150.76,150.71,23.776884]
[1727284801968,6.634,150.74,150.7,16.2786]
[1727284802271,1.65848907,150.75,150.7,16.2786]
[1727284802272,6.6335,150.75,150.7,16.2786]
[1727284802460,1.65864103,150.74,150.7,16.2786]
[1727284802646,6.6335,150.75,150.7,16.2786]
[1727284802846,6.633,150.76,150.7,16.2786]
[1727284806079,6.6326,150.77,150.71,23.776884]
[1727284806269,6.6309,150.81,150.75,6.5099]
[1727284806461,6.6306,150.82,150.76,35.47963133]
[1727284806661,23.1931,150.86,150.76,35.47963133]
[1727284806861,6.6308,150.82,150.76,35.47963133]
[1727284807760,6.89174319,150.87,150.76,35.47963133]
[1727284807955,6.6298,150.84,150.77,23.776884]
[1727284808179,6.63,150.83,150.77,23.776884]
[1727284808661,6.6285,150.87,150.81,6.0562]
[1727284808867,6.6278,150.88,150.82,16.587]
[1727284809254,6.90792554,150.9,150.82,16.587]
[1727284809459,8.56533962,150.9,150.82,16.587]
[1727284809659,6.6287,150.86,150.82,16.587]
[1727284809903,8.28652651,150.85,150.82,16.587]
[1727284810182,6.6318,150.79,150.78,16.587]
[1727284810381,1.65767686,150.84,150.78,16.587]
[1727284810689,6.6309,150.81,150.77,6.0562]
[1727284810981,8.28938933,150.8,150.77,6.0562]
[1727284811178,6.6313,150.8,150.77,6.0562]
[1727284811688,1.65808928,150.79,150.77,6.0562]
[1727284811975,6.6313,150.8,150.77,6.0562]